bitfinex/quotes_ETHUSD_20241101
["timestamp","ask_amount","ask_price","bid_price","bid_amount"]
[1730492921886,4.76057043,2520.3,2520.0,0.12416297]
[1730492922405,4.76057043,2520.3,2519.9,0.778]
[1730492922406,3.96793,2520.2,2519.9,0.778]
[1730492922572,3.96793,2520.2,2520.0,0.1241638]
[1730492922912,3.99859043,2520.2,2519.9,0.778]
[1730492923113,3.99859043,2520.2,2520.0,0.12416298]
[1730492923313,3.99859043,2520.2,2519.9,0.778]
[1730492923614,3.99859043,2520.2,2520.0,0.12416511]
[1730492923815,0.03066043,2520.2,2519.9,0.778]
[1730492924000,0.03066043,2520.2,2520.0,0.12416455]
[1730492924197,0.03066043,2520.2,2519.9,1.79496574]
[1730492924400,0.03066043,2520.2,2520.0,0.12416348]
[1730492924575,0.03066043,2520.2,2519.9,1.79496574]
[1730492924778,0.03066043,2520.2,2520.0,0.12416449]
[1730492924979,0.03066043,2520.2,2520.0,1.45453737]
[1730492925489,0.03066043,2520.2,2520.0,2.57317168]
[1730492925890,3.96781,2520.3,2520.0,2.57317168]
[1730492926623,0.03066043,2520.2,2520.0,2.57317168]
[1730492926774,0.8082,2520.5,2520.0,2.57317168]
[1730492926980,0.03066043,2520.4,2520.1,0.73988452]
[1730492928125,3.99828043,2520.4,2520.1,0.73988452]
[1730492933306,3.99828043,2520.4,2520.0,5.42275737]
[1730492938930,0.03066043,2520.4,2520.0,1.45453737]
[1730492939242,3.96761,2520.5,2520.2,2.23253737]
[1730492939446,3.99827043,2520.5,2520.2,2.23253737]
[1730492940153,7.93447,2520.7,2520.4,1.45453737]
[1730492940709,3.96723,2520.7,2520.4,1.45453737]
[1730492942113,0.03066043,2520.6,2520.3,3.96767]
[1730492942557,3.96723,2520.7,2520.3,3.96767]
[1730492943146,3.96723,2520.7,2520.3,4.98449574]
[1730492943917,3.96723,2520.7,2520.3,8.95219574]
[1730492944149,0.71675681,2520.8,2520.4,5.42213737]
[1730492944150,4.68376681,2520.8,2520.4,5.42213737]
[1730492944557,0.71675681,2520.8,2520.5,0.778]
[1730492944854,2.91021949,2521.5,2520.5,0.778]
[1730492944855,0.1231182,2523.4,2521.0,3.0]
[1730492945060,3.96097,2524.7,2521.0,3.0]
[1730492945061,3.52834621,2523.9,2523.5,3.96275]
[1730492945213,0.62121354,2523.9,2523.7,3.96243]
[1730492945416,0.62121354,2523.9,2523.5,1.02195191]
[1730492945626,0.8159,2525.0,2523.4,0.778]
[1730492945627,2.91409004,2524.6,2523.4,0.778]
[1730492945825,4.388579,2524.9,2523.4,0.778]
[1730492945826,3.96091,2524.7,2523.4,0.778]
[1730492946057,0.40133234,2524.9,2523.4,0.778]
[1730492946217,0.8159,2525.0,2523.6,3.96246]
[1730492946218,0.7635,2524.4,2523.6,3.96246]
[1730492946539,3.9618,2524.1,2523.5,3.06568932]
[1730492946785,5.7809867,2524.3,2523.5,2.94170821]
[1730492946786,5.7809767,2524.3,2523.5,2.94170821]
[1730492947070,2.60141104,2524.0,2523.5,2.94170821]
[1730492947371,3.96268,2523.6,2522.7,2.94170821]
[1730492947537,6.07511166,2523.5,2522.6,3.96404]
[1730492947743,3.96268,2523.6,2523.0,2.94170821]
[1730492947935,4.7823,2523.7,2523.0,2.94170821]
[1730492948129,0.874465,2523.6,2523.0,2.94170821]
[1730492948443,0.874465,2523.6,2522.6,3.96408]
[1730492948444,3.0,2523.4,2522.6,2.94170821]
[1730492948756,0.874465,2523.6,2522.6,2.94170821]
[1730492948757,6.96325,2523.2,2522.6,2.94170821]
[1730492948968,6.96325,2523.2,2522.4,4.74238]
[1730492948969,4.837135,2523.6,2522.9,2.94170821]
[1730492949174,4.837135,2523.6,2523.2,2.94170821]
[1730492949175,3.0,2523.5,2523.2,2.94170821]
[1730492949469,0.7837135,2523.4,2523.2,2.94170821]
[1730492949828,0.7837135,2523.4,2522.9,2.94170821]
[1730492950028,3.96305,2523.4,2522.9,2.94170821]
[1730492950273,3.96311,2523.3,2522.9,2.94170821]
[1730492950491,3.96305,2523.4,2522.9,2.94170821]
[1730492953962,3.96306,2523.3,2522.9,2.94170821]
[1730492954292,0.822,2525.2,2523.8,0.55]
[1730492954454,3.96039,2525.0,2524.9,2.94170821]
[1730492954648,0.822,2525.2,2524.3,2.94170821]
[1730492954950,3.96081,2524.8,2524.3,2.94170821]
[1730492955386,3.96097,2524.7,2524.3,2.94170821]
[1730492955760,3.96097,2524.7,2524.1,6.9826351]
[1730492956092,0.792178,2524.6,2524.1,6.90340821]
[1730492956296,0.792178,2524.6,2524.1,2.94170821]
[1730492956594,3.96105,2524.6,2524.0,3.96194]
[1730492956886,3.96105,2524.6,2523.9,7.72642384]
[1730492957280,3.96105,2524.6,2524.0,3.96195]
[1730492957476,3.96105,2524.6,2523.9,7.72642384]
[1730492957682,0.396105,2524.5,2523.9,7.72642384]
[1730492957859,0.396105,2524.5,2524.0,0.0792307]
[1730492959456,3.96105,2524.6,2524.0,0.0792307]
[1730492959896,3.0,2525.0,2524.0,0.0792307]
[1730492960298,3.96113,2524.6,2524.0,0.20318482]
[1730492960601,0.396113,2524.5,2524.0,4.0411307]
[1730492960895,0.396113,2524.5,2524.0,4.16508486]
[1730492961957,4.357293,2524.5,2524.0,4.16508486]
[1730492962180,4.357293,2524.5,2524.0,0.20318486]
[1730492963192,4.357313,2524.5,2524.0,0.0792307]
[1730492963360,0.8318433,2524.4,2524.0,0.0792307]
[1730492964558,0.8318433,2524.4,2524.0,4.0411007]
[1730492964776,3.9612,2524.5,2524.0,4.0411007]
[1730492964976,3.96112,2524.6,2524.0,4.0411007]
[1730492965187,3.96112,2524.6,2524.0,0.0792307]
[1730492965396,3.96127,2524.5,2523.9,4.04121132]
[1730492965630,3.96127,2524.5,2524.0,3.96194]
[1730492965922,4.753509,2524.5,2524.0,3.96194]
[1730492966120,4.753509,2524.5,2523.9,3.96198]
[1730492966420,4.753509,2524.5,2523.9,8.00325131]
[1730492966727,0.792239,2524.5,2523.9,3.96198]
[1730492966885,3.95976,2525.4,2523.9,0.07923133]
[1730492967085,3.96144,2524.4,2523.9,0.07923133]
[1730492967392,3.96143,2524.4,2523.9,0.07923133]
[1730492967613,3.96143,2524.4,2523.9,4.04134133]
[1730492967614,4.437673,2524.4,2523.9,4.04134133]
[1730492969915,4.76211,2524.6,2524.0,3.96187]
[1730492969916,3.96118,2524.5,2524.0,3.96187]
[1730492970397,3.96143,2524.4,2523.9,4.04134133]
[1730492970995,3.96143,2524.4,2523.9,0.07923133]
[1730492971206,4.833791,2524.4,2523.9,0.07923133]
[1730492971831,4.833791,2524.4,2524.0,3.96194]
[1730492973538,4.833791,2524.4,2523.9,4.16529195]
[1730492974715,4.833791,2524.4,2524.0,0.12396062]
[1730492974916,0.872361,2524.4,2524.0,3.96196]
[1730492975332,0.872361,2524.4,2524.0,4.08592062]
[1730492975540,4.833791,2524.4,2524.0,0.12396062]
[1730492976032,4.833791,2524.4,2524.0,3.96194]
[1730492977735,8.795231,2524.4,2523.9,4.04133133]
[1730492978238,4.833791,2524.4,2524.0,0.12396332]
[1730492978558,4.833791,2524.4,2524.1,0.12396225]
[1730492978836,4.833791,2524.4,2523.9,4.23967093]
[1730492979136,7.92289,2524.4,2524.0,0.123963]
[1730492979335,7.92289,2524.4,2524.1,0.12396353]
[1730492979336,3.96143,2524.4,2524.1,0.12396353]
[1730492979522,7.92285,2524.4,2524.2,0.12396304]
[1730492979727,3.96142,2524.4,2523.9,4.04133133]
[1730492980035,3.96142,2524.4,2524.0,0.32230103]
[1730492980338,3.96142,2524.4,2524.1,0.12396193]
[1730492980633,3.96142,2524.4,2524.0,0.1983391]
[1730492980634,3.96142,2524.4,2524.2,0.12396193]
[1730492980864,3.96142,2524.4,2524.0,0.19833971]
[1730492981005,3.96142,2524.4,2524.1,0.1239617]
[1730492981206,7.92288,2524.4,2524.2,0.1239617]
[1730492981402,7.92288,2524.4,2523.9,4.04133133]
[1730492981403,4.833808,2524.4,2523.9,4.04133133]
[1730492981757,4.833808,2524.4,2524.0,0.32230345]
[1730492981946,4.833808,2524.4,2524.0,0.12396286]
[1730492982251,8.795238,2524.4,2524.0,0.12396286]
[1730492982540,8.795238,2524.4,2524.0,0.12396175]
[1730492982716,4.833808,2524.4,2524.1,0.12396175]
[1730492983042,8.795228,2524.4,2523.9,4.23967014]
[1730492983341,8.795228,2524.4,2524.0,0.32230311]
[1730492983342,8.795238,2524.4,2524.0,0.32230311]
[1730492983509,4.833808,2524.4,2524.1,0.1239643]
[1730492983723,8.795248,2524.4,2524.2,0.1239643]
[1730492983907,8.795248,2524.4,2524.0,0.19834251]
[1730492984108,3.9615,2524.3,2524.1,0.12396417]
[1730492984341,4.833808,2524.4,2524.2,0.32230707]
[1730492984542,7.92286,2524.4,2524.3,0.12396417]
[1730492984770,3.96142,2524.4,2524.3,0.12396417]
[1730492984974,3.13463043,2524.5,2524.0,0.19833701]
[1730492985140,3.96146,2524.4,2524.1,0.12396065]
[1730492985474,3.13463043,2524.5,2524.2,0.32229747]
[1730492985773,3.96136,2524.4,2524.3,0.12396046]
[1730492985977,3.96136,2524.4,2524.0,3.96191]
[1730492986274,3.96136,2524.4,2523.9,6.98270929]
[1730492986482,3.96152,2524.3,2523.9,6.98270929]
[1730492986679,3.96136,2524.4,2523.9,8.15251922]
[1730492986982,3.96136,2524.4,2524.0,0.12396357]
[1730492987342,7.92277,2524.4,2523.9,8.07328789]
[1730492987555,7.92281,2524.4,2523.9,5.13189993]
[1730492987880,3.96136,2524.4,2524.0,0.12396307]
[1730492988067,3.96136,2524.4,2523.9,5.40947277]
[1730492988375,3.96136,2524.4,2524.0,0.82272307]
[1730492988579,3.96136,2524.4,2524.1,0.99931693]
[1730492988747,3.96136,2524.4,2524.2,0.1239608]
[1730492988949,3.96136,2524.4,2524.0,4.66069227]
[1730492989161,3.96136,2524.4,2524.1,2.01495705]
[1730492989342,7.92279,2524.4,2524.2,0.32229597]
[1730492989687,3.96136,2524.4,2524.3,1.6962879]
[1730492989843,3.96136,2524.4,2524.3,1.00080045]
[1730492990264,3.96136,2524.4,2524.3,0.12395588]
[1730492990473,3.96136,2524.4,2524.3,4.86613943]
[1730492992294,3.96136,2524.4,2524.3,3.09423477]
[1730492993379,3.96136,2524.4,2524.3,3.09424419]
[1730492994258,3.96136,2524.4,2524.3,2.27132304]
[1730492994458,3.96136,2524.4,2524.3,3.09424419]
[1730492995176,3.96136,2524.4,2524.3,2.27132304]
[1730492995849,3.96136,2524.4,2524.3,2.02340162]
[1730492996353,3.96136,2524.4,2524.3,1.00273936]
[1730492996683,3.96136,2524.4,2524.3,1.82696912]
[1730492997261,3.96121,2524.5,2524.1,0.82292115]
[1730492997486,3.96149,2524.3,2524.2,1.70435895]
[1730492998090,3.96149,2524.3,2524.2,1.70501715]
[1730492998265,3.96149,2524.3,2524.2,1.70495838]
[1730492999289,3.96149,2524.3,2524.2,0.68200686]
[1730492999499,3.96149,2524.3,2524.2,2.53023]
[1730493000312,4.75376,2524.3,2524.2,2.53023]
[1730493000616,4.75376,2524.3,2524.2,1.70730885]
[1730493000988,4.75376,2524.3,2524.2,2.27753301]
[1730493001716,4.75376,2524.3,2524.2,0.57022416]
[1730493001919,4.75376,2524.3,2524.0,0.82292115]
[1730493002119,4.75376,2524.3,2524.1,1.7085747]
[1730493002324,0.79227,2524.3,2524.0,0.82292115]
[1730493002488,3.96153,2524.3,2523.9,3.02062124]
[1730493002819,3.96153,2524.3,2524.0,0.68340197]
[1730493003021,3.96153,2524.3,2523.9,0.07923328]
[1730493003501,3.96153,2524.3,2524.0,0.68343685]
[1730493003687,3.96153,2524.3,2523.9,0.07923328]
[1730493006936,7.92312,2524.3,2523.9,0.07923328]
[1730493007517,3.96166,2524.2,2523.9,0.07923328]
[1730493007919,3.96166,2524.2,2524.0,0.19834326]
[1730493008116,3.96166,2524.2,2524.0,0.12395888]
[1730493008320,3.96166,2524.2,2524.1,0.12395888]
[1730493011721,3.96166,2524.2,2524.1,0.12396476]
[1730493013560,3.96166,2524.2,2524.1,1.57208435]
[1730493014427,3.96166,2524.2,2524.1,0.12396476]
[1730493015138,3.96166,2524.2,2523.9,1.52735287]
[1730493015342,3.96153,2524.3,2524.0,0.3223075]
[1730493015343,3.96152,2524.3,2524.0,0.3223075]
[1730493015541,3.96152,2524.3,2524.0,0.12396419]
[1730493015542,3.96165,2524.2,2524.0,0.12396419]
[1730493015742,3.96165,2524.2,2524.1,0.12396419]
[1730493019155,3.96152,2524.3,2524.1,0.12396419]
[1730493019352,3.96142,2524.4,2524.1,1.44811959]
[1730493019533,3.96142,2524.4,2524.3,1.44811959]
[1730493020064,3.96142,2524.4,2524.3,1.57208319]
[1730493020261,0.801,2524.6,2524.3,1.57208319]
[1730493020565,3.9608,2524.8,2524.3,1.57208319]
[1730493020566,3.96124,2524.5,2524.3,1.57208319]
[1730493020763,3.96124,2524.5,2524.4,0.1239636]
[1730493021262,3.96104,2524.6,2524.4,0.1239636]
[1730493021461,3.96104,2524.6,2524.3,1.44811959]
[1730493021662,3.96104,2524.6,2524.4,0.12394775]
[1730493021870,3.96104,2524.6,2524.5,0.12394775]
[1730493022404,3.96104,2524.6,2524.3,1.44811959]
[1730493022611,3.96104,2524.6,2524.4,0.12394734]
[1730493022903,3.96104,2524.6,2524.3,1.44811959]
[1730493022904,3.96124,2524.5,2524.3,1.44811959]
[1730493023203,3.96104,2524.6,2524.4,0.12395093]
[1730493023411,7.92215,2524.6,2524.3,1.44811959]
[1730493023574,3.96104,2524.6,2524.4,0.12394767]
[1730493023774,7.92216,2524.6,2524.3,1.44811959]
[1730493023974,3.96104,2524.6,2524.4,0.12394777]
[1730493024280,3.96104,2524.6,2524.3,1.44811959]
[1730493024478,3.96104,2524.6,2524.4,0.12394651]
[1730493024705,3.96104,2524.6,2524.3,2.12178878]
[1730493024869,3.96104,2524.6,2524.4,0.12394691]
[1730493025064,7.92219,2524.6,2524.3,2.12178878]
[1730493025300,3.96118,2524.5,2524.4,0.12394649]
[1730493025502,3.96104,2524.6,2524.4,0.12394649]
[1730493025718,3.96118,2524.5,2524.3,1.44811959]
[1730493025918,3.96104,2524.6,2524.4,0.12394707]
[1730493026222,3.96104,2524.6,2524.3,1.44811959]
[1730493026421,3.96104,2524.6,2524.4,0.1239471]
[1730493026626,7.92218,2524.6,2524.3,1.44811959]
[1730493026800,7.92218,2524.6,2524.4,0.12394709]
[1730493027002,7.92218,2524.6,2524.3,1.44811959]
[1730493027217,7.92218,2524.6,2524.4,0.1239471]
[1730493027405,3.96104,2524.6,2524.3,1.44811959]
[1730493027725,7.92219,2524.6,2524.3,1.44811959]
[1730493028025,3.96104,2524.6,2524.4,0.12394735]
[1730493028220,3.96104,2524.6,2524.3,1.44811959]
[1730493028422,3.96104,2524.6,2524.4,0.12394672]
[1730493028613,7.92214,2524.6,2524.3,1.44811959]
[1730493028927,3.9612,2524.5,2524.4,0.12394854]
[1730493029515,3.9612,2524.5,2524.4,0.12394787]
[1730493029887,3.9612,2524.5,2523.7,0.18348718]
[1730493029888,4.74022,2523.9,2523.7,0.18348718]
[1730493030126,4.74022,2523.9,2523.8,0.12397609]
[1730493032295,4.74022,2523.9,2523.5,4.25771096]
[1730493032604,4.74022,2523.9,2523.4,0.778]
[1730493032801,4.74022,2523.9,2523.6,0.12397987]
[1730493033211,4.74022,2523.9,2523.7,0.12397987]
[1730493033424,4.74022,2523.9,2523.5,4.24034577]
[1730493033623,4.74022,2523.9,2523.6,0.12398136]
[1730493033842,4.74022,2523.9,2523.7,0.12398136]
[1730493034017,4.52833013,2524.9,2523.7,0.12398136]
[1730493034018,3.95924,2525.8,2525.3,3.95991]
[1730493034224,3.95894,2526.0,2525.5,3.95952]
[1730493034389,3.95894,2526.0,2525.4,6.98199683]
[1730493034731,4.0821282,2525.9,2525.4,0.07919377]
[1730493034933,4.0321282,2525.9,2525.4,4.03887377]
[1730493035089,4.0321282,2525.9,2525.4,4.96852966]
[1730493035287,0.0731182,2525.9,2525.4,4.96852966]
[1730493035525,0.0731182,2525.9,2525.6,3.95936]
[1730493035695,0.0731182,2525.9,2525.6,0.07917875]
[1730493035897,0.0731182,2525.9,2525.5,3.95947]
[1730493036099,0.0731182,2525.9,2525.5,4.48798169]
[1730493036293,0.0731182,2525.9,2525.6,0.07917907]
[1730493036600,0.0731182,2525.9,2525.7,3.95915]
[1730493037335,0.0731182,2525.9,2525.8,3.95914]
[1730493037506,0.0731182,2525.9,2525.8,4.73714]
[1730493037695,0.8259182,2525.9,2525.6,3.95943]
[1730493037900,0.8259182,2525.9,2525.5,0.07918292]
[1730493038647,0.0731182,2525.9,2525.5,4.03869292]
[1730493038808,0.0731182,2525.9,2525.6,3.95941]
[1730493038996,0.0731182,2525.9,2525.5,0.07918292]
[1730493039201,0.0731182,2525.9,2525.5,3.9596]
[1730493039521,0.0731182,2525.9,2525.6,0.47376]
[1730493039899,3.95924,2525.8,2525.3,0.395991]
[1730493040102,4.71213,2525.7,2525.2,0.07919095]
[1730493040306,4.71213,2525.7,2524.9,23.7305]
[1730493040307,3.95954,2525.6,2524.9,23.7305]
[1730493040527,4.7122,2525.7,2525.1,3.96023]
[1730493040762,4.7122,2525.7,2525.2,4.03922315]
[1730493041043,4.7121,2525.7,2525.2,0.07919315]
[1730493041201,3.95961,2525.6,2524.9,19.77]
[1730493041400,3.95995,2525.3,2524.9,19.77]
[1730493041620,3.9598,2525.4,2524.9,19.77]
[1730493042208,3.95996,2525.3,2524.9,19.77]
[1730493042403,3.95988,2525.4,2524.9,19.77]
[1730493042599,3.95998,2525.3,2524.9,22.220859]
[1730493044098,3.95998,2525.3,2524.9,2.450859]
[1730493044297,4.71291,2525.2,2524.5,3.96115]
[1730493044547,3.96047,2525.0,2524.5,3.96115]
[1730493044753,3.96023,2525.1,2524.4,0.778]
[1730493044926,7.92134,2524.9,2524.4,0.778]
[1730493045126,7.92128,2524.9,2524.5,0.473939]
[1730493045328,3.96064,2524.9,2524.5,0.473939]
[1730493046344,3.96072,2524.8,2524.5,0.473939]
[1730493046592,0.71568114,2525.9,2524.7,2.385]
[1730493046718,0.7528,2528.1,2526.7,3.0]
[1730493047096,0.7528,2528.1,2527.0,3.95713]
[1730493047216,0.7528,2528.1,2526.8,6.90059306]
[1730493047415,3.9562,2527.7,2526.9,3.95734]
[1730493047612,3.95648,2527.5,2526.8,2.94311306]
[1730493048016,3.95691,2527.3,2526.7,0.7528]
[1730493048213,3.95691,2527.3,2526.7,3.95759]
[1730493048214,0.395691,2527.2,2526.7,3.95759]
[1730493048427,0.395691,2527.2,2526.6,0.778]
[1730493048758,0.395691,2527.2,2526.4,3.75698382]
[1730493049053,3.95714,2527.1,2526.4,3.75698382]
[1730493049559,3.95734,2527.0,2526.2,6.320153]
[1730493049721,4.3926231,2527.0,2526.2,6.320153]
[1730493050066,3.95743,2526.9,2526.2,6.320153]
[1730493050422,3.95743,2526.9,2526.2,4.73638]
[1730493050925,3.95743,2526.9,2526.1,3.75698382]
[1730493051126,0.43927131,2526.8,2526.1,7.71553382]
[1730493051532,4.39685131,2526.8,2526.1,7.71553382]
[1730493051751,3.95808,2526.5,2526.1,3.75698382]
[1730493052378,7.91621,2526.5,2526.1,3.75698382]
[1730493052549,7.91621,2526.5,2525.9,0.29198273]
[1730493052550,3.95829,2526.4,2525.9,0.29198273]
[1730493052748,0.44723767,2526.3,2525.9,0.29198273]
[1730493053539,0.44723767,2526.3,2525.9,4.33005375]
[1730493053741,7.91623,2526.5,2525.9,0.37115375]
[1730493054171,3.9582,2526.4,2525.9,0.37115375]
[1730493055278,3.95808,2526.5,2525.9,0.37115375]
[1730493055892,0.7528,2526.7,2525.9,0.29198273]
[1730493056056,4.71055,2526.7,2525.3,6.75698382]
[1730493056262,3.95847,2526.3,2525.4,5.18545838]
[1730493056461,7.91695,2526.3,2525.5,3.95947]
[1730493056990,7.91696,2526.3,2525.6,3.95931]
[1730493057290,3.95847,2526.3,2525.6,3.95931]
[1730493057945,3.95847,2526.3,2525.5,3.95947]
[1730493058180,4.750132,2526.3,2525.7,3.95928]
[1730493059387,4.750132,2526.3,2525.6,3.75698382]
[1730493059724,8.708582,2526.3,2525.6,3.75698382]
[1730493060071,4.750112,2526.3,2525.6,7.71642382]
[1730493060472,8.708562,2526.3,2525.6,7.71642382]
[1730493060696,4.750112,2526.3,2525.6,7.71642382]
[1730493060901,0.4750112,2526.2,2525.6,3.75698382]
[1730493061095,0.4750112,2526.2,2525.5,3.95947]
[1730493061096,3.95867,2526.1,2525.5,3.95947]
[1730493061492,3.95882,2526.0,2525.3,11.67665382]
[1730493061693,3.95882,2526.0,2525.3,7.71681382]
[1730493061907,4.87727012,2526.0,2525.3,7.71681382]
[1730493062283,0.91845012,2526.0,2525.4,0.079183]
[1730493062600,4.75067,2526.1,2525.5,3.95958]
[1730493063433,4.75067,2526.1,2525.4,4.038863]
[1730493064978,4.75067,2526.1,2525.5,3.9596]
[1730493065182,0.792,2526.1,2525.5,3.9596]
[1730493066273,4.75076,2526.1,2525.4,4.038923]
[1730493066521,0.792,2526.1,2525.4,4.038923]
[1730493066673,0.792,2526.1,2525.5,3.95957]
[1730493066877,0.792,2526.1,2525.4,3.95974]
[1730493067077,3.95883,2526.0,2525.5,0.07918302]
[1730493067318,3.95883,2526.0,2525.3,3.75698382]
[1730493067719,0.792,2526.1,2525.4,0.07918522]
[1730493067943,4.75069,2526.1,2525.4,0.07918522]
[1730493068258,4.75069,2526.1,2525.3,7.71690382]
[1730493068620,4.87732412,2526.0,2525.2,3.96007]
[1730493068820,8.83626412,2526.0,2525.2,3.96007]
[1730493069135,4.87732412,2526.0,2525.2,3.96007]
[1730493070354,8.83628412,2526.0,2525.2,3.96007]
[1730493070551,3.95925,2525.8,2524.9,3.96055]
[1730493070752,3.95932,2525.7,2524.9,3.96055]
[1730493071050,0.7932,2525.6,2524.9,3.96055]
[1730493071618,8.71239,2525.6,2524.7,10.85996386]
[1730493071829,8.71239,2525.6,2524.7,6.89918386]
[1730493072034,0.871239,2525.5,2524.7,6.89918386]
[1730493072443,0.871239,2525.5,2524.5,4.435019]
[1730493072444,0.8297,2525.4,2524.5,4.435019]
[1730493072645,3.95992,2525.3,2524.5,3.96108]
[1730493073135,3.95992,2525.3,2524.6,3.96101]
[1730493073456,4.78949,2525.4,2524.6,3.96101]
[1730493073662,0.874922,2525.3,2524.6,3.96101]
[1730493074982,4.834842,2525.3,2524.5,3.96117]
[1730493075279,4.834842,2525.3,2524.5,3.96111]
[1730493075445,8.794872,2525.3,2524.5,3.96111]
[1730493075845,4.834842,2525.3,2524.5,3.96111]
[1730493076055,0.5664542,2525.2,2524.6,0.0792119]
[1730493076672,4.79101,2525.1,2524.4,0.41296287]
[1730493076984,0.8307,2525.1,2524.5,3.96104]
[1730493077172,0.8307,2525.1,2524.5,0.07921545]
[1730493077485,0.8307,2525.1,2524.4,7.31275101]
[1730493077854,4.79103,2525.1,2524.4,0.41297715]
[1730493078052,3.96057,2524.9,2524.4,0.41297715]
[1730493078289,0.875115,2525.0,2524.1,0.12392481]
[1730493078290,0.8308,2524.8,2524.1,0.12392481]
[1730493078585,3.96105,2524.6,2523.9,0.12392481]
[1730493078790,1.623005,2524.5,2523.8,7.3137263]
[1730493079087,1.623005,2524.5,2523.9,4.08602553]
[1730493079683,1.623005,2524.5,2524.0,3.96196]
[1730493079857,0.8308,2524.5,2524.0,0.12395553]
[1730493080182,0.8308,2524.5,2524.0,3.96188]
[1730493080397,0.8308,2524.5,2523.9,3.96204]
[1730493080695,0.8308,2524.5,2524.0,3.96196]
[1730493080848,0.8308,2524.5,2523.9,3.96203]
[1730493081051,0.8308,2524.5,2524.0,3.96196]
[1730493081887,0.8308,2524.5,2523.9,8.65540763]
[1730493082283,0.8308,2524.5,2523.9,4.69337763]
[1730493082610,0.8308,2524.5,2523.9,4.77259022]
[1730493082775,0.8308,2524.5,2524.0,3.96188]
[1730493084513,0.8231,2524.8,2524.4,3.96133]
[1730493084692,0.8231,2524.8,2524.5,3.96111]
[1730493084899,0.8231,2525.2,2524.5,4.04032594]
[1730493085116,0.8231,2525.2,2524.6,3.96087]
[1730493085321,0.8231,2525.2,2524.7,4.03996826]
[1730493085618,0.8231,2525.2,2524.7,4.04005826]
[1730493088329,0.8231,2525.2,2524.7,4.03997826]
[1730493088985,0.8231,2525.2,2524.7,0.07920826]
[1730493089725,0.8231,2525.2,2524.7,4.03999826]
[1730493090247,0.8231,2525.2,2524.8,3.9607]
[1730493090410,0.8231,2525.2,2524.8,7.92132]
[1730493090602,0.8231,2525.2,2524.8,7.92124]
[1730493090798,0.8231,2525.2,2524.7,4.76093583]
[1730493091043,0.8231,2525.2,2524.7,4.84014104]
[1730493091232,0.8231,2525.2,2524.7,0.80010583]
[1730493091536,0.8231,2525.2,2524.6,7.92183]
[1730493091844,0.8231,2525.2,2524.6,3.96088]
[1730493093108,0.8231,2525.2,2524.5,3.96115]
[1730493093742,4.78318,2525.2,2524.5,3.96115]
[1730493095236,0.8231,2525.2,2524.5,3.96115]
[1730493095533,1.697392,2525.2,2524.6,3.96101]
[1730493095743,1.697392,2525.2,2524.5,3.96115]
[1730493096298,0.7766,2525.1,2524.2,4.73954]
[1730493096499,0.7766,2525.1,2524.1,19.77]
[1730493096500,4.73683,2525.1,2524.4,3.96131]
[1730493096725,4.73683,2525.1,2524.4,4.0405278]
[1730493096912,0.5611122,2525.0,2524.4,4.0405278]
[1730493100269,4.5215122,2525.0,2524.4,0.0792178]
[1730493100457,0.8156,2524.9,2524.3,3.96148]
[1730493101667,0.8156,2524.9,2524.2,4.08556763]
[1730493102395,0.8156,2524.9,2524.3,3.96147]
[1730493102550,0.8156,2524.9,2524.3,4.08540763]
[1730493102551,1.34931122,2524.9,2524.3,4.08540763]
[1730493102972,1.34931122,2524.9,2524.3,0.12393763]
[1730493103184,1.34931122,2524.9,2524.2,3.96163]
[1730493103185,5.30991122,2524.9,2524.2,3.96157]
[1730493104083,5.30991122,2524.9,2524.2,7.92311]
[1730493104293,5.30991122,2524.9,2524.3,0.12393867]
[1730493104495,5.30991122,2524.9,2524.3,0.12393881]
[1730493104814,5.30991122,2524.9,2524.2,8.00232349]
[1730493104996,5.30991122,2524.9,2524.3,0.12393881]
[1730493105167,5.30991122,2524.9,2524.3,4.08541881]
[1730493106779,0.53099112,2524.8,2524.3,0.12393881]
[1730493106982,0.7663,2524.7,2524.1,4.08573881]
[1730493107680,0.7663,2524.7,2524.2,0.0792236]
[1730493107994,0.7663,2524.7,2524.1,4.08573881]
[1730493108190,1.2590906,2524.7,2524.2,0.0792236]
[1730493108601,1.2590906,2524.7,2524.1,4.08575025]
[1730493108974,1.2590906,2524.7,2524.2,3.96162]
[1730493109165,1.2590906,2524.7,2524.2,4.04084358]
[1730493109899,0.57509417,2524.6,2524.1,7.92358]
[1730493110076,0.57509417,2524.6,2524.1,7.92352]
[1730493110275,0.57509417,2524.6,2524.2,4.04084359]
[1730493111105,0.57509417,2524.6,2524.2,0.07804053]
[1730493113068,0.57509417,2524.6,2524.2,0.20198909]
[1730493113270,0.57509417,2524.6,2524.2,0.12395057]
[1730493113508,3.96108,2524.6,2524.1,0.12395057]
[1730493114213,3.96108,2524.6,2524.0,3.96195]
[1730493114380,3.96108,2524.6,2524.1,0.12395057]
[1730493114579,3.96108,2524.6,2524.0,3.96195]
[1730493114777,3.96108,2524.6,2524.1,0.12395692]
[1730493114978,0.472738,2524.5,2524.0,3.96195]
[1730493115186,0.8282,2524.4,2524.1,0.1239572]
[1730493115396,0.8282,2524.4,2523.9,3.96209]
[1730493115605,0.8282,2524.4,2523.9,4.16042235]
[1730493115804,0.8282,2524.4,2524.0,3.96195]
[1730493115990,0.8282,2524.4,2524.1,0.12395772]
[1730493116205,0.8282,2524.4,2524.2,0.12395772]
[1730493116380,0.8282,2524.4,2524.0,3.96195]
[1730493116710,0.8282,2524.4,2524.1,0.12395731]
[1730493116910,1.3544018,2524.4,2524.2,0.12395731]
[1730493117109,1.3544018,2524.4,2523.9,4.4543212]
[1730493117303,0.8282,2524.4,2524.0,0.32229006]
[1730493117506,0.8282,2524.4,2524.1,0.12395771]
[1730493117684,0.8282,2524.4,2524.2,0.12395771]
[1730493117879,0.8282,2524.4,2524.0,0.19833235]
[1730493118079,0.8282,2524.4,2524.1,0.12395777]
[1730493118415,0.8282,2524.4,2524.2,0.12395777]
[1730493118590,0.8282,2524.4,2524.0,0.19833235]
[1730493118790,0.8282,2524.4,2524.1,0.12395758]
[1730493118992,0.8282,2524.4,2524.2,0.12395758]
[1730493119196,0.8282,2524.4,2524.0,0.19833213]